bitfinex/quotes_SOLUSD_20250601
["timestamp","ask_amount","ask_price","bid_price","bid_amount"]
[1748765387895,10.26,154.15,154.11,14.8229668]
[1748765388071,25.0829668,154.15,154.1,40.8229668]
[1748765388475,10.26,154.15,154.11,14.8229668]
[1748765389197,10.26,154.15,154.12,14.8229668]
[1748765390513,10.26,154.15,154.11,16.3583668]
[1748765390798,10.26,154.15,154.11,8.1013]
[1748765391095,14.8229668,154.14,154.11,8.1013]
[1748765391471,14.8229668,154.13,154.11,8.1013]
[1748765392868,21.31106789,154.13,154.11,8.1013]
[1748765393474,54.4829668,154.12,154.07,22.5488668]
[1748765393696,14.8229668,154.11,154.07,22.5488668]
[1748765394776,14.8229668,154.11,154.07,7.7259]
[1748765395198,21.31218447,154.11,154.07,7.7259]
[1748765395803,21.31218447,154.11,154.07,1.5692]
[1748765396010,14.8229668,154.11,154.07,16.3921668]
[1748765396595,21.311845,154.11,154.07,16.3921668]
[1748765398702,6.4888782,154.11,154.07,16.3921668]
[1748765401085,21.311845,154.11,154.07,8.0396]
[1748765401404,21.311845,154.11,154.07,22.8625668]
[1748765401600,21.311845,154.11,154.07,8.0396]
[1748765402693,6.4888782,154.11,154.07,22.8625668]
[1748765403088,54.4829668,154.12,154.07,22.8625668]
[1748765403297,39.66,154.12,154.09,14.8229668]
[1748765404083,6.48769077,154.14,154.1,14.8229668]
[1748765404296,49.9,154.15,154.11,14.8229668]
[1748765404502,10.26,154.15,154.12,14.8229668]
[1748765404796,39.66,154.16,154.14,14.8229668]
[1748765406896,21.30904625,154.18,154.14,14.8229668]
[1748765407205,39.66,154.17,154.14,14.8229668]
[1748765407588,54.4829668,154.17,154.13,14.8229668]
[1748765407787,39.66,154.17,154.13,14.8229668]
[1748765408298,54.4829668,154.17,154.12,14.8229668]
[1748765409091,6.48676699,154.16,154.12,14.8229668]
[1748765409306,14.8229668,154.15,154.11,40.8229668]
[1748765409692,21.30973379,154.16,154.11,40.8229668]
[1748765409892,21.30973379,154.16,154.11,47.31175201]
[1748765410187,46.14646274,154.17,154.12,14.8229668]
[1748765410389,39.66,154.17,154.13,14.8229668]
[1748765411902,39.66,154.17,154.14,14.8229668]
[1748765412396,6.48602858,154.18,154.14,14.8229668]
[1748765412596,46.12602858,154.18,154.14,14.8229668]
[1748765413807,14.8229668,154.17,154.12,14.8229668]
[1748765414011,14.8229668,154.16,154.11,40.8229668]
[1748765414220,14.8229668,154.17,154.12,14.8229668]
[1748765414720,31.56860704,154.19,154.14,14.8229668]
[1748765415213,39.64,154.18,154.14,14.8229668]
[1748765415605,31.56860704,154.19,154.14,14.8229668]
[1748765415807,39.64,154.18,154.14,14.8229668]
[1748765417018,39.64,154.18,154.14,21.3105163]
[1748765417811,31.56860704,154.19,154.15,14.8229668]
[1748765417812,10.26,154.19,154.15,14.8229668]
[1748765418001,49.88,154.19,154.15,14.8229668]
[1748765418515,10.26,154.19,154.16,14.8229668]
[1748765418822,71.18860844,154.19,154.15,14.8229668]
[1748765419207,71.18860844,154.19,154.14,14.8229668]
[1748765419721,31.56860844,154.19,154.14,14.8229668]
[1748765419922,39.62,154.18,154.14,14.8229668]
[1748765420917,54.4429668,154.18,154.12,6.48834703]
[1748765421101,54.4429668,154.18,154.13,14.8229668]
[1748765422013,21.30931304,154.17,154.12,14.8229668]
[1748765424958,14.8229668,154.15,154.1,40.8229668]
[1748765425151,14.8229668,154.15,154.1,14.8229668]
[1748765425536,14.8229668,154.16,154.11,14.8229668]
[1748765425731,21.30989466,154.16,154.11,21.311644]
[1748765426858,54.4429668,154.18,154.13,14.8229668]
[1748765427062,39.62,154.18,154.14,14.8229668]
[1748765427279,25.0829668,154.19,154.14,14.8229668]
[1748765427452,31.56864818,154.19,154.14,14.8229668]
[1748765427650,39.64,154.18,154.14,14.8229668]
[1748765429660,39.64,154.18,154.14,21.31052634]
[1748765429873,46.12600834,154.18,154.14,14.8229668]
[1748765430877,14.8229668,154.17,154.13,14.8229668]
[1748765431387,21.30973379,154.16,154.12,14.8229668]
[1748765431853,6.48676699,154.16,154.12,14.8229668]
[1748765434758,6.48676699,154.16,154.13,14.8229668]
[1748765435175,21.30948408,154.17,154.13,14.8229668]
[1748765436670,6.48651728,154.17,154.13,14.8229668]
[1748765438076,25.0829668,154.19,154.15,14.8229668]
[1748765438281,64.6829668,154.19,154.15,14.8229668]
[1748765438580,25.0829668,154.19,154.15,14.8229668]
[1748765438980,10.26,154.19,154.15,14.8229668]
[1748765439294,16.74564855,154.19,154.15,14.8229668]
[1748765440173,16.74564855,154.19,154.16,14.8229668]
[1748765441503,14.8229668,154.18,154.13,14.8229668]
[1748765441680,14.8229668,154.17,154.12,14.8229668]
[1748765442884,21.30973266,154.17,154.12,14.8229668]
[1748765443897,21.30973266,154.17,154.12,21.31131152]
[1748765444089,14.8229668,154.18,154.12,6.48834472]
[1748765444291,31.5686023,154.19,154.14,14.8229668]
[1748765445497,14.8229668,154.18,154.14,14.8229668]
[1748765445691,14.8229668,154.18,154.13,14.8229668]
[1748765446699,21.30928295,154.18,154.13,14.8229668]
[1748765447302,14.8229668,154.16,154.12,14.8229668]
[1748765447483,14.8229668,154.16,154.11,14.8229668]
[1748765448608,21.30995515,154.16,154.11,14.8229668]
[1748765449389,21.30995515,154.16,154.11,21.31180369]
[1748765449597,21.30946454,154.17,154.12,14.8229668]
[1748765451100,14.8229668,154.16,154.11,14.8229668]
[1748765451294,14.8229668,154.16,154.11,21.31175831]
[1748765452624,21.31001431,154.16,154.11,21.31175831]
[1748765453826,21.30947102,154.17,154.12,14.8229668]
[1748765458619,21.30895993,154.18,154.13,14.8229668]
[1748765459492,14.8229668,154.17,154.12,21.31120073]
[1748765459999,14.8229668,154.16,154.11,21.31178385]
[1748765461010,21.30961553,154.17,154.12,14.8229668]
[1748765461818,49.8,154.19,154.13,14.8229668]
[1748765461819,6.48607337,154.18,154.13,14.8229668]
[1748765461997,21.30904017,154.18,154.13,14.8229668]
[1748765463800,21.30904017,154.18,154.13,21.31081413]
[1748765465217,10.26,154.19,154.13,32.48784733]
[1748765465517,10.2,154.23,154.19,26.0]
[1748765465729,165.2052914,154.28,154.22,14.8229668]
[1748765465730,31.50526196,154.27,154.22,14.8229668]
[1748765466039,31.50526196,154.27,154.2,26.0]
[1748765466040,10.2,154.27,154.24,14.8229668]
[1748765466330,10.2,154.27,154.25,14.8229668]
[1748765466626,54.4029668,154.3,154.25,14.8229668]
[1748765467131,49.78,154.31,154.27,14.8229668]
[1748765467422,56.26066675,154.31,154.27,14.8229668]
[1748765467615,71.08363355,154.31,154.26,14.8229668]
[1748765468095,71.08363355,154.31,154.25,26.0]
[1748765468096,14.8229668,154.28,154.19,6.19645407]
[1748765468291,14.8229668,154.26,154.22,40.8229668]
[1748765468512,14.8229668,154.27,154.22,40.8229668]
[1748765468713,14.8229668,154.25,154.21,26.0]
[1748765469012,14.8229668,154.23,154.19,14.8229668]
[1748765469219,14.8229668,154.24,154.19,40.8229668]
[1748765469394,6.48382286,154.23,154.19,40.8229668]
[1748765469594,6.48382286,154.23,154.19,14.8229668]
[1748765469811,6.48382286,154.23,154.2,26.0]
[1748765470011,21.30644658,154.24,154.2,26.0]
[1748765470211,21.30609909,154.25,154.2,40.8229668]
[1748765470920,25.0229668,154.26,154.22,14.8229668]
[1748765471120,25.0229668,154.26,154.21,14.8229668]
[1748765471620,31.50569939,154.26,154.21,14.8229668]
[1748765473002,14.8229668,154.24,154.2,26.0]
[1748765473205,14.8229668,154.23,154.2,26.0]
[1748765473726,6.48390313,154.23,154.2,26.0]
[1748765474108,6.48298217,154.25,154.2,26.0]
[1748765474313,14.8229668,154.24,154.2,26.0]
[1748765475038,14.8229668,154.23,154.18,14.8229668]
[1748765475337,54.4629668,154.23,154.18,14.8229668]
[1748765475745,6.48424328,154.22,154.18,14.8229668]
[1748765475911,26.40640477,154.26,154.18,14.8229668]
[1748765475912,6.48298217,154.25,154.19,14.8229668]
[1748765476115,39.62,154.24,154.2,14.8229668]
[1748765477022,54.4429668,154.24,154.19,14.8229668]
[1748765477221,14.8229668,154.23,154.18,14.8229668]
[1748765477706,14.8229668,154.21,154.17,40.8229668]
[1748765477910,14.8229668,154.21,154.17,26.0]
[1748765478733,14.8229668,154.21,154.17,40.8229668]
[1748765479637,21.30721008,154.22,154.17,47.30929764]
[1748765479840,6.48382286,154.23,154.18,14.8229668]
[1748765480044,10.2,154.26,154.2,14.8229668]
[1748765480265,10.2,154.26,154.22,14.8229668]
[1748765481227,10.2,154.26,154.23,14.8229668]
[1748765481423,14.8229668,154.24,154.17,26.0]
[1748765481627,14.8229668,154.22,154.17,40.8229668]
[1748765481828,14.8229668,154.2,154.13,10.18]
[1748765482040,14.8229668,154.19,154.16,26.0]
[1748765482438,14.8229668,154.2,154.16,26.0]
[1748765482845,14.8229668,154.19,154.14,14.8229668]
[1748765483128,14.8229668,154.19,154.14,40.8229668]
[1748765484026,21.30887853,154.19,154.14,40.8229668]
[1748765484520,21.30887853,154.19,154.14,47.3105302]
[1748765485449,6.48591173,154.19,154.15,14.8229668]
[1748765486650,14.8229668,154.19,154.14,47.3105302]
[1748765486949,14.8229668,154.19,154.14,40.8229668]
[1748765487955,14.8229668,154.19,154.14,47.31053344]
[1748765488141,6.4850843,154.2,154.15,14.8229668]
[1748765488142,21.3080511,154.2,154.15,14.8229668]
[1748765489047,14.8229668,154.19,154.14,40.8229668]
[1748765490150,21.30885056,154.19,154.14,40.8229668]
[1748765490352,21.30885056,154.19,154.14,47.31056564]
[1748765492558,6.4850843,154.2,154.14,47.31056564]
[1748765492737,14.8229668,154.19,154.14,47.31056564]
[1748765494361,21.30850805,154.19,154.14,47.31056564]
[1748765495059,6.48554125,154.19,154.14,47.31056564]
[1748765495230,21.30850805,154.19,154.14,47.31056564]
[1748765497739,21.30850805,154.19,154.14,40.8229668]
[1748765498643,60.94850805,154.19,154.14,40.8229668]
[1748765498857,46.12554125,154.19,154.14,47.31037144]
[1748765499049,60.94850805,154.19,154.14,47.31037144]
[1748765499750,60.94850805,154.19,154.14,40.8229668]
[1748765501753,60.94850805,154.19,154.14,47.31045945]
[1748765502471,60.94850805,154.19,154.14,40.8229668]
[1748765502769,14.8229668,154.17,154.14,26.0]
[1748765502945,21.30973379,154.16,154.12,26.0]
[1748765503144,21.30973379,154.16,154.11,14.8229668]
[1748765503345,21.30973379,154.16,154.11,40.8229668]
[1748765504167,21.30973379,154.16,154.11,47.31182319]
[1748765504471,21.30947826,154.17,154.12,14.8229668]
[1748765504974,21.30947826,154.17,154.11,32.48885639]
[1748765505161,21.30947826,154.17,154.12,14.8229668]
[1748765514969,21.30947826,154.17,154.12,21.31138322]
[1748765516673,6.48592554,154.18,154.12,21.31138322]
[1748765516881,14.8229668,154.17,154.12,21.31138322]
[1748765517987,31.58889234,154.18,154.13,14.8229668]
[1748765518783,26.24407922,154.18,154.13,9.47815368]
[1748765518977,19.75815368,154.18,154.13,15.96608974]
[1748765519186,10.28,154.18,154.15,9.47815368]
[1748765519490,8.20790216,154.25,154.17,35.47815368]
[1748765519695,10.2,154.26,154.22,9.47815368]
[1748765519995,19.67815368,154.26,154.21,9.47815368]
[1748765520163,19.67815368,154.26,154.21,35.47815368]
[1748765520663,9.47815368,154.22,154.17,9.47815368]
[1748765520979,9.47815368,154.22,154.17,26.0]
[1748765520980,15.96307173,154.21,154.17,26.0]
[1748765522168,15.96307173,154.21,154.16,9.47815368]
[1748765522793,14.80379798,154.2,154.15,40.80379798]
[1748765525882,14.80379798,154.2,154.15,47.29093877]
[1748765526083,16.68491805,154.21,154.15,47.29093877]
[1748765526084,31.48871603,154.21,154.16,14.80379798]
[1748765526502,10.2,154.21,154.17,14.80379798]
[1748765528180,10.2,154.21,154.17,21.29009229]
[1748765529407,10.2,154.21,154.17,14.80379798]
[1748765529798,31.48858103,154.21,154.16,21.29042632]
[1748765531607,10.2,154.21,154.17,14.80379798]
[1748765532507,16.68477365,154.21,154.17,14.80379798]
[1748765533210,10.2,154.21,154.17,14.80379798]
[1748765533711,16.68467148,154.21,154.17,14.80379798]
[1748765534186,16.68467148,154.21,154.16,21.29042632]
[1748765535287,10.2,154.21,154.16,21.29042632]
[1748765536209,60.86818594,154.22,154.16,21.29042632]
[1748765536883,10.2,154.23,154.18,14.80379798]
[1748765537210,0.28432314,154.25,154.18,14.80379798]
[1748765537211,14.80379798,154.27,154.21,26.0]
[1748765537384,14.80379798,154.24,154.2,26.0]
[1748765537910,14.80379798,154.23,154.18,40.80379798]
[1748765538224,39.58,154.25,154.18,26.0]
[1748765538225,14.80379798,154.24,154.18,26.0]
[1748765538380,14.80379798,154.24,154.19,14.80379798]
[1748765538984,21.28762084,154.23,154.18,40.80379798]
[1748765539591,21.28762084,154.23,154.18,47.28964992]
[1748765540120,14.80379798,154.24,154.19,14.80379798]
[1748765540493,54.38379798,154.25,154.2,14.80379798]
[1748765540692,39.58,154.24,154.21,14.80379798]
[1748765540994,39.58,154.25,154.21,21.28841979]
[1748765541313,10.2,154.26,154.22,14.80379798]
[1748765541491,10.2,154.26,154.21,6.48462181]
[1748765541492,14.80379798,154.28,154.23,14.80379798]
[1748765541816,54.40379798,154.28,154.23,14.80379798]
[1748765542315,60.88558541,154.28,154.23,14.80379798]
[1748765543914,60.88558541,154.28,154.23,21.28757471]
[1748765544323,14.80379798,154.27,154.23,14.80379798]
[1748765544503,46.08178743,154.28,154.23,14.80379798]
[1748765544704,14.80379798,154.27,154.23,14.80379798]
[1748765547308,21.28601038,154.27,154.23,14.80379798]
[1748765548122,54.36379798,154.27,154.23,14.80379798]
[1748765549036,39.56,154.27,154.23,14.80379798]
[1748765549242,39.56,154.27,154.23,21.28760996]
[1748765551228,39.56,154.27,154.24,14.80379798]
[1748765552421,21.28520914,154.29,154.24,14.80379798]
[1748765552608,39.56,154.28,154.25,14.80379798]
[1748765553227,6.48141116,154.29,154.25,14.80379798]
[1748765553409,46.04141116,154.29,154.25,14.80379798]
[1748765554732,60.84520914,154.29,154.25,14.80379798]
[1748765555514,60.84520914,154.29,154.24,14.80379798]
[1748765556109,14.80379798,154.28,154.24,14.80379798]
[1748765557038,14.80379798,154.28,154.23,6.48357096]
[1748765557330,14.80379798,154.28,154.24,14.80379798]
[1748765558252,60.84520914,154.29,154.24,14.80379798]
[1748765559347,60.84520914,154.29,154.22,6.48424328]
[1748765559522,60.84520914,154.29,154.24,14.80379798]
[1748765560838,14.80379798,154.27,154.22,14.80379798]
[1748765561737,14.80379798,154.28,154.23,14.80379798]
[1748765562346,39.54,154.27,154.24,14.80379798]
[1748765562730,39.54,154.27,154.23,21.28741157]
[1748765562929,39.54,154.27,154.23,14.80379798]
[1748765563447,54.34379798,154.27,154.22,14.80379798]
[1748765565644,60.82629456,154.27,154.22,14.80379798]
[1748765566142,46.02249658,154.27,154.22,14.80379798]
[1748765566345,60.82629456,154.27,154.22,14.80379798]
[1748765566541,14.80379798,154.26,154.2,29.18207195]
[1748765566745,14.80379798,154.26,154.21,14.80379798]
[1748765567048,60.82629456,154.27,154.22,14.80379798]
[1748765567634,14.80379798,154.26,154.21,14.80379798]
[1748765568354,14.80379798,154.26,154.2,48.69709798]
[1748765568735,14.80379798,154.25,154.2,48.69709798]
[1748765569350,62.22785082,154.27,154.2,48.69709798]
[1748765569351,46.02249658,154.27,154.21,14.80379798]
[1748765569649,21.28658228,154.26,154.22,14.80379798]
[1748765570146,60.8260995,154.27,154.22,14.80379798]
[1748765571245,60.8260995,154.27,154.22,21.2879396]
[1748765571441,60.8260995,154.27,154.22,14.80379798]
[1748765573028,14.80379798,154.25,154.2,48.82943265]
[1748765574448,21.28683717,154.25,154.2,48.82943265]
[1748765575547,21.28635988,154.26,154.21,21.28838125]
[1748765576260,6.4825619,154.26,154.22,14.80379798]
[1748765577152,21.28635988,154.26,154.21,21.28838125]
[1748765581456,14.80379798,154.26,154.21,21.28838125]
[1748765581758,46.0222802,154.27,154.22,14.80379798]
[1748765581759,60.82607818,154.27,154.22,14.80379798]
[1748765582275,39.48,154.26,154.22,14.80379798]
[1748765583171,39.48,154.26,154.22,21.2879158]
[1748765586657,39.48,154.26,154.22,9.46772714]
[1748765589354,155.48166882,154.29,154.23,9.46772714]
[1748765589557,39.48,154.28,154.24,9.46772714]
[1748765589879,39.48,154.28,154.25,9.46772714]
[1748765590244,6.48166882,154.29,154.26,9.46772714]
[1748765590758,45.96166882,154.29,154.26,9.46772714]
[1748765591147,45.96166882,154.29,154.25,9.46772714]
[1748765591355,9.46772714,154.28,154.22,6.48424328]
[1748765591657,9.46772714,154.25,154.2,35.46772714]
[1748765591863,48.94772714,154.25,154.2,35.46772714]
[1748765592262,9.46772714,154.24,154.2,26.0]
[1748765592848,15.9512228,154.24,154.2,26.0]
[1748765593955,9.46772714,154.23,154.2,26.0]
[1748765594150,15.9512228,154.24,154.2,26.0]
[1748765594780,70.92105855,154.25,154.21,14.79800802]
[1748765595081,56.12305053,154.25,154.21,14.79800802]
[1748765597946,70.92105855,154.25,154.2,40.79800802]
[1748765598762,14.79800802,154.24,154.2,26.0]
[1748765598963,14.79800802,154.22,154.17,14.79800802]
[1748765599175,54.27800802,154.21,154.16,14.79800802]
[1748765599361,39.48,154.2,154.16,14.79800802]
[1748765599564,39.48,154.2,154.16,40.79800802]
[1748765599970,45.96526055,154.2,154.16,40.79800802]
[1748765601659,60.76326857,154.2,154.16,26.0]
[1748765602779,45.96526055,154.2,154.16,26.0]
[1748765602969,45.96526055,154.2,154.16,40.79800802]
[1748765605677,60.76326857,154.2,154.16,26.0]
[1748765605891,60.76326857,154.2,154.15,14.79800802]
[1748765606274,45.96526055,154.2,154.14,7.9349]
[1748765606461,14.79800802,154.16,154.1,7.9349]
[1748765606659,54.29800802,154.15,154.1,7.9349]
[1748765606861,14.79800802,154.14,154.1,7.9349]
[1748765607067,39.5,154.15,154.1,7.9349]
[1748765607272,14.79800802,154.14,154.1,7.9349]
[1748765608184,6.48802958,154.13,154.1,7.9349]
[1748765610291,6.48802958,154.13,154.1,22.73290802]
[1748765610464,21.28573179,154.14,154.1,22.73290802]
[1748765610815,6.48772377,154.14,154.1,22.73290802]
[1748765613995,6.48772377,154.14,154.1,7.9349]
[1748765614169,14.79800802,154.13,154.08,40.79800802]
[1748765614695,14.79800802,154.12,154.07,14.79800802]
[1748765614892,39.5,154.11,154.07,14.79800802]
[1748765615995,45.98917685,154.11,154.07,14.79800802]
[1748765617292,45.98917685,154.11,154.06,48.73290802]
[1748765617594,60.78718487,154.11,154.06,48.73290802]
[1748765618267,45.98917685,154.11,154.07,14.79800802]
[1748765619884,14.79800802,154.08,154.06,7.9349]
[1748765620197,54.29800802,154.08,154.06,7.9349]
[1748765620392,39.5,154.08,154.06,7.9349]
[1748765620698,54.29800802,154.08,154.06,6.427]
[1748765620899,39.5,154.08,154.06,6.427]
[1748765621277,45.99034696,154.08,154.06,6.427]
[1748765621474,39.5,154.08,154.06,21.22500802]
[1748765621676,39.5,154.08,154.07,14.79800802]
[1748765623796,6.48923496,154.11,154.07,14.79800802]
[1748765624012,6.48923496,154.11,154.08,14.79800802]
[1748765624211,26.3795221,154.14,154.09,14.79800802]
[1748765624212,24.95800802,154.14,154.09,14.79800802]
[1748765624386,39.52,154.13,154.1,14.79800802]
[1748765624704,24.95800802,154.14,154.1,14.79800802]
[1748765624873,16.64777392,154.14,154.1,14.79800802]
[1748765625079,56.16777392,154.14,154.11,14.79800802]
[1748765625974,16.64777392,154.14,154.11,14.79800802]
[1748765626171,10.16,154.14,154.11,14.79800802]
[1748765626997,37.50611156,154.13,154.03,6.49184384]
[1748765627192,14.79800802,154.11,154.06,14.79800802]
[1748765627393,39.54,154.11,154.07,14.79800802]
[1748765628073,46.02927745,154.11,154.07,14.79800802]
[1748765628277,46.06806667,154.13,154.1,14.79800802]
[1748765629414,46.06806667,154.13,154.09,14.79800802]
[1748765632020,31.44576044,154.14,154.09,14.79800802]
[1748765632238,71.00576044,154.14,154.1,14.79800802]
[1748765632737,10.16,154.14,154.1,14.79800802]
[1748765633044,6.48641368,154.17,154.13,14.79800802]
[1748765633197,48.64491346,154.18,154.14,14.79800802]
[1748765633198,55.13100034,154.18,154.14,14.79800802]
[1748765633713,94.71100034,154.18,154.14,14.79800802]
[1748765635117,55.13100034,154.18,154.14,14.79800802]
[1748765635305,94.69100034,154.18,154.14,14.79800802]
[1748765635500,38.46491346,154.18,154.14,14.79800802]
[1748765635708,14.79800802,154.15,154.06,6.49097754]
[1748765635910,14.79800802,154.13,154.08,14.79800802]
[1748765636115,54.57800802,154.13,154.08,40.79800802]
[1748765636409,54.57800802,154.13,154.05,14.79800802]
[1748765636410,14.79800802,154.1,154.05,14.79800802]
[1748765636709,21.28772182,154.09,154.04,14.79800802]
[1748765637019,21.28772182,154.09,154.05,26.0]
[1748765637429,6.4897138,154.09,154.05,40.79800802]
[1748765637718,21.28744709,154.1,154.05,40.79800802]
[1748765638498,21.28744709,154.1,154.06,1.6141]
[1748765639020,22.70601954,154.15,154.07,14.79800802]
[1748765639321,14.79800802,154.14,154.09,14.79800802]
[1748765640125,14.79800802,154.13,154.06,8.10498843]
[1748765640304,46.3271878,154.15,154.06,8.10498843]
[1748765640305,14.79800802,154.12,154.07,14.79800802]
[1748765640620,21.28659558,154.12,154.07,14.79800802]
[1748765640802,21.28659558,154.12,154.06,8.10498843]
[1748765640803,14.79800802,154.11,154.06,16.41210802]
[1748765641008,14.79800802,154.1,154.06,16.41210802]
[1748765641211,14.79800802,154.09,154.06,1.6141]
[1748765642614,21.2878676,154.09,154.06,1.6141]
[1748765643545,14.79800802,154.11,154.06,16.41210802]
[1748765643697,54.63800802,154.11,154.06,22.90293653]
[1748765644010,61.12689365,154.11,154.06,22.90293653]
[1748765644328,14.79800802,154.1,154.06,1.6141]
[1748765644825,14.79800802,154.07,154.02,8.07956028]
[1748765645027,14.79800802,154.07,154.02,48.8775683]
[1748765645804,21.28874922,154.07,154.02,42.38500802]
[1748765646005,14.79800802,154.05,154.02,27.587]
[1748765648030,39.86,154.07,154.03,14.79800802]
[1748765648228,46.35067944,154.07,154.03,14.79800802]
[1748765648446,39.86,154.07,154.03,14.79800802]
[1748765649537,39.86,154.07,154.04,14.79800802]
[1748765649940,14.79800802,154.05,154.0,14.79800802]
[1748765650148,14.79800802,154.04,154.0,14.79800802]
[1748765651244,14.79800802,154.04,153.99,15.68560762]
[1748765652163,6.49224177,154.03,153.99,15.68560762]
[1748765653145,21.28994155,154.04,154.0,8.0084]
[1748765654332,14.79800802,154.03,154.0,8.0084]
[1748765656056,21.29028709,154.03,154.0,8.0084]
[1748765658655,14.79800802,154.02,154.0,8.0084]
[1748765659083,14.79800802,154.01,153.99,0.8875996]
[1748765659356,14.79800802,154.0,153.99,0.8875996]
[1748765659952,6.49227907,154.03,153.99,0.8875996]
[1748765660257,14.79800802,154.01,153.99,0.8875996]
[1748765660461,29.88033918,154.0,153.99,0.8875996]
[1748765660637,36.37384567,154.0,153.99,0.8875996]
[1748765661572,21.57583765,154.0,153.99,0.8875996]
[1748765661738,61.67583765,154.0,153.99,0.8875996]
[1748765662271,76.47384567,154.0,153.99,0.8875996]
[1748765663966,61.67583765,154.0,153.99,0.8875996]
[1748765664562,61.39151451,154.0,153.99,0.8875996]
[1748765664867,21.29151451,154.0,153.99,0.8875996]
[1748765665234,14.57329592,154.01,153.99,0.8875996]
[1748765665452,14.79800802,154.02,153.99,0.8875996]
[1748765665655,14.79800802,154.01,153.99,0.8875996]
[1748765667201,14.79800802,154.01,153.99,8.5388996]
[1748765667662,14.79800802,154.02,153.99,8.5388996]
[1748765669553,21.29027475,154.03,153.99,8.5388996]
[1748765670359,21.29028296,154.03,153.99,23.33690762]
[1748765673866,14.79800802,154.04,153.99,29.83076254]
[1748765674375,14.79800802,154.04,154.0,14.79800802]
[1748765676156,21.28997423,154.04,153.99,29.83076254]
[1748765676780,21.29090981,154.02,153.99,8.5388996]
[1748765682471,14.79800802,154.01,153.99,8.5388996]
[1748765682913,21.29090981,154.02,153.99,8.5388996]
[1748765685267,22.72143616,154.04,153.99,8.5388996]
[1748765685468,14.79800802,154.03,153.99,2.5316996]
[1748765687712,21.29065574,154.03,153.99,2.5316996]
[1748765688218,6.49264772,154.03,153.99,2.5316996]
[1748765689604,14.79800802,154.03,153.99,2.5316996]
[1748765690803,6.49266329,154.02,153.99,2.5316996]
[1748765693210,54.77800802,154.05,154.0,14.79800802]
[1748765693409,14.79800802,154.05,154.0,14.79800802]
[1748765693617,14.79800802,154.05,153.99,2.5316996]
[1748765693618,6.49198018,154.04,153.99,17.32970762]
[1748765694224,6.49198018,154.04,153.99,23.82361917]
[1748765694528,14.79800802,154.06,154.01,14.79800802]
[1748765694731,14.79800802,154.07,154.02,14.79800802]
[1748765695710,21.28881649,154.07,154.02,14.79800802]
[1748765697434,21.28881649,154.07,154.02,21.2905418]
[1748765697631,21.28881649,154.07,154.03,14.79800802]
[1748765699024,6.49013499,154.08,154.03,14.79800802]
[1748765699333,14.79800802,154.07,154.03,14.79800802]
[1748765699912,165.15393586,154.09,154.03,21.29022296]
[1748765700113,149.0,154.09,154.05,14.79800802]
[1748765700321,6.4887153,154.12,154.07,14.79800802]
[1748765700539,6.4887153,154.12,154.09,14.79800802]
[1748765700718,138.78755539,154.16,154.1,14.79800802]
[1748765700719,6.48760866,154.14,154.1,14.79800802]
[1748765701222,6.48760866,154.14,154.07,6.49055624]
[1748765701223,14.79800802,154.14,154.07,6.49055624]
[1748765701528,14.79800802,154.13,154.09,14.79800802]
[1748765701839,14.79800802,154.14,154.07,6.49055624]
[1748765702013,14.79800802,154.14,154.06,6.4034]
[1748765702014,14.79800802,154.14,154.09,14.79800802]
[1748765703314,6.48802958,154.13,154.09,14.79800802]
[1748765703521,6.48802958,154.13,154.1,14.79800802]
[1748765704023,6.48802958,154.13,154.09,14.79800802]
[1748765704229,21.2860376,154.13,154.09,14.79800802]
[1748765704943,14.79800802,154.11,154.06,21.20140802]
[1748765705142,14.79800802,154.11,154.07,14.79800802]
[1748765705345,14.79800802,154.12,154.07,14.79800802]
[1748765705513,29.59601604,154.08,153.99,8.8911996]
[1748765705714,14.79800802,154.03,153.99,8.8911996]
[1748765706371,14.79800802,154.04,153.99,34.8911996]
[1748765706642,14.79800802,154.04,153.99,49.68920762]
[1748765707219,6.49224177,154.03,153.99,49.68920762]
[1748765708632,14.79800802,154.04,153.99,49.68920762]
[1748765708943,14.79800802,154.03,153.99,49.68920762]
[1748765710333,14.79800802,154.03,153.99,34.8911996]
[1748765710657,6.49308486,154.01,153.99,8.8911996]
[1748765714242,21.29109288,154.01,153.99,8.8911996]
[1748765715531,21.29109288,154.01,153.99,0.8875996]
[1748765715741,14.79800802,154.0,153.99,0.8875996]
[1748765716864,6.49350649,154.0,153.99,0.8875996]
[1748765717339,6.49321668,154.01,153.99,0.8875996]
[1748765717542,21.2912247,154.01,153.99,0.8875996]
[1748765717750,14.79800802,154.0,153.99,0.8875996]
[1748765717949,21.2912247,154.01,153.99,0.8875996]
[1748765721560,14.79800802,154.0,153.99,0.8875996]
[1748765722357,16.23068007,154.03,153.99,0.8875996]
[1748765722657,14.79800802,154.02,153.99,0.8875996]
[1748765723435,6.4918203,154.04,153.99,0.8875996]
[1748765723649,14.79800802,154.02,153.99,0.8875996]